bitfinex/quotes_ETHUSD_20250822
["timestamp","ask_amount","ask_price","bid_price","bid_amount"]
[1755874830076,0.0012,4628.8,4628.7,13.274145]
[1755874830260,0.0012,4628.8,4628.7,5.4335925]
[1755874830452,0.0012,4628.8,4628.7,6.26661181]
[1755874830837,0.0012,4628.8,4628.7,30.63135881]
[1755874831064,0.0012,4628.8,4628.7,35.92843381]
[1755874831476,0.0012,4628.8,4628.7,40.21543381]
[1755874832043,0.0012,4628.8,4628.7,5.26843381]
[1755874832275,0.0012,4628.8,4628.7,11.55690019]
[1755874833075,0.0012,4628.8,4628.7,37.05007719]
[1755874833279,0.0012,4628.8,4628.7,41.33507719]
[1755874833450,0.0012,4628.8,4628.7,14.66785219]
[1755874833652,0.0012,4628.8,4628.7,12.50741838]
[1755874833846,0.0012,4628.8,4628.7,11.73495938]
[1755874834161,0.0012,4628.8,4628.7,0.108]
[1755874834677,0.0012,4628.8,4628.7,4.289856]
[1755874834879,0.0012,4628.8,4628.7,0.108]
[1755874835378,0.4706,4628.8,4628.7,0.108]
[1755874835679,0.4706,4628.8,4628.7,7.232651]
[1755874835680,0.0012,4628.8,4628.7,7.232651]
[1755874835848,0.0012,4628.8,4628.7,3.43171]
[1755874836188,0.0012,4628.8,4628.7,7.165546]
[1755874836341,0.0012,4628.8,4628.7,5.108781]
[1755874836545,0.0012,4628.8,4628.7,10.813072]
[1755874836740,0.4706,4628.8,4628.7,0.108]
[1755874836958,0.0012,4628.8,4628.7,6.2649]
[1755874837184,0.0012,4628.8,4628.7,0.108]
[1755874837343,0.0012,4628.8,4628.7,31.97094381]
[1755874837548,0.0012,4628.8,4628.7,35.26843381]
[1755874837765,0.0012,4628.8,4628.7,38.17800077]
[1755874838347,0.002,4629.7,4629.3,5.8201538]
[1755874838549,0.002,4629.9,4629.6,2.82001382]
[1755874838855,0.0192,4630.8,4630.7,5.81950072]
[1755874839079,0.0192,4630.8,4630.7,40.20850072]
[1755874839781,0.4505,4633.2,4630.8,5.81945409]
[1755874839980,0.128,4633.8,4630.8,5.81945409]
[1755874839981,0.02,4633.8,4631.3,5.81922095]
[1755874840188,0.02,4633.8,4631.3,40.20722095]
[1755874840189,0.4505,4633.3,4631.3,40.20722095]
[1755874840550,0.4505,4632.7,4631.3,33.768]
[1755874840752,0.02,4633.8,4631.3,33.768]
[1755874840753,0.0469757,4633.8,4631.3,13.83833395]
[1755874840986,0.4505,4633.0,4631.3,15.43809761]
[1755874841357,0.4505,4633.6,4631.7,2.81903447]
[1755874841576,0.4705,4632.8,4631.7,35.92703447]
[1755874841804,0.02,4632.8,4631.7,40.40500149]
[1755874841955,0.02,4632.8,4631.7,40.40505714]
[1755874842151,0.02,4632.8,4632.7,2.15856843]
[1755874842375,0.02,4632.8,4632.7,13.4097191]
[1755874842653,0.02,4632.8,4632.7,15.6377191]
[1755874842860,0.02,4633.8,4633.7,2.15810259]
[1755874843093,0.02,4633.8,4633.7,28.54598026]
[1755874843322,0.02,4633.8,4633.7,31.00692992]
[1755874843461,0.002,4634.9,4634.7,5.81763695]
[1755874843662,0.002,4634.9,4634.7,30.00265762]
[1755874843867,0.4505,4636.4,4634.7,30.00265762]
[1755874843868,0.4505,4636.4,4635.7,2.15717151]
[1755874844068,0.02,4636.8,4635.7,12.26549118]
[1755874844267,0.02,4636.8,4635.7,20.66895577]
[1755874844498,0.02,4636.8,4635.7,18.53570003]
[1755874844800,0.02,4636.8,4635.8,0.66]
[1755874844964,0.02,4636.8,4636.0,3.0]
[1755874845164,0.02,4636.8,4636.7,0.108]
[1755874845422,0.02,4636.8,4636.7,13.13770203]
[1755874845705,0.02,4636.8,4636.7,4.67071203]
[1755874845914,0.4705,4636.8,4636.7,0.19806393]
[1755874846205,0.4705,4636.8,4636.7,0.1973792]
[1755874846419,0.02,4636.8,4636.7,4.273]
[1755874846565,0.02,4636.8,4636.7,8.91205627]
[1755874846769,0.02,4636.8,4636.7,1.10688572]
[1755874847003,0.02,4636.8,4636.7,6.3503]
[1755874847165,0.02,4636.8,4636.7,2.62585]
[1755874847476,0.02,4636.8,4636.7,4.272]
[1755874847676,0.4705,4636.8,4634.0,5.3851]
[1755874847876,0.0015,4636.8,4635.3,3.0]
[1755874848190,0.002,4637.3,4635.4,5.929]
[1755874848389,0.002,4637.3,4636.9,2.15660987]
[1755874848701,0.002,4637.3,4636.9,4.27]
[1755874849072,0.002,4637.3,4637.2,2.15647373]
[1755874849272,0.002,4637.3,4636.9,0.16080637]
[1755874849606,0.002,4637.3,4637.0,4.45198064]
[1755874849978,0.002,4637.3,4637.2,2.15647373]
[1755874850301,0.02,4637.8,4637.1,3.0]
[1755874850302,0.02,4637.8,4637.6,0.66]
[1755874850510,0.02,4637.8,4637.0,0.18198064]
[1755874850681,0.02,4637.8,4637.1,4.269]
[1755874850872,0.02,4637.8,4637.6,3.66]
[1755874851069,0.022,4638.8,4637.8,3.0]
[1755874851386,0.022,4638.8,4638.0,3.0]
[1755874851568,0.022,4638.8,4637.9,1.659]
[1755874851771,0.4505,4638.7,4637.9,1.659]
[1755874852107,0.4505,4638.7,4638.0,4.267]
[1755874852316,0.4505,4638.7,4637.9,1.659]
[1755874852513,0.022,4638.8,4638.7,2.1557764]
[1755874852802,0.022,4638.8,4638.7,7.0827764]
[1755874853139,0.022,4639.8,4639.7,2.15531176]
[1755874853417,0.96925597,4639.9,4639.8,5.81526531]
[1755874853614,0.96925597,4639.9,4639.8,11.19469184]
[1755874853821,0.64551194,4639.9,4639.8,11.19469184]
[1755874853998,0.64551194,4639.9,4639.8,1.11342653]
[1755874854181,0.64551194,4639.9,4639.8,4.265]
[1755874854516,0.64551194,4639.9,4639.8,0.1648979]
[1755874854718,0.64551194,4639.9,4639.8,4.265]
[1755874854918,0.64551194,4639.9,4639.8,4.264]
[1755874855217,0.64551194,4639.9,4639.7,1.659]
[1755874855381,0.64551194,4639.9,4639.8,4.264]
[1755874855784,0.64551194,4639.9,4639.8,0.16140183]
[1755874855987,0.64551194,4639.9,4639.8,4.264]
[1755874856217,1.09601194,4639.9,4639.8,4.264]
[1755874856392,1.09601194,4639.9,4639.8,4.372]
[1755874856797,1.09601194,4639.9,4639.8,0.108]
[1755874857120,4.70561313,4639.9,4639.6,0.16320546]
[1755874857417,0.4505,4639.8,4639.4,0.108]
[1755874857618,0.4505,4639.7,4639.4,0.108]
[1755874858128,0.4505,4639.6,4639.4,0.108]
[1755874858497,0.64551194,4639.9,4639.4,0.26664779]
[1755874858695,0.64551194,4639.9,4639.2,0.66]
[1755874858897,0.64551194,4639.9,4639.8,0.108]
[1755874859139,0.64551194,4639.9,4639.8,4.369]
[1755874859424,0.64551194,4639.9,4639.8,6.71965833]
[1755874859625,0.64551194,4639.9,4639.8,0.30339302]
[1755874859824,0.64551194,4639.9,4639.8,6.71967889]
[1755874860031,0.64551194,4639.9,4639.8,1.00321066]
[1755874860205,1.09601194,4639.9,4639.8,0.108]
[1755874860721,0.64551194,4639.9,4639.8,0.108]
[1755874861741,1.09601194,4639.9,4639.8,0.108]
[1755874862305,1.09601194,4639.9,4639.6,0.108]
[1755874862525,1.06010119,4639.8,4639.4,0.108]
[1755874862725,3.67245217,4639.9,4638.5,6.41485978]
[1755874862726,0.64551194,4639.9,4638.5,6.41485978]
[1755874862925,0.64551194,4639.9,4639.7,0.108]
[1755874863126,0.4489,4639.8,4639.7,0.108]
[1755874863329,0.4489,4639.8,4639.4,0.16263544]
[1755874863497,0.4489,4639.8,4638.1,1.657]
[1755874863498,0.02694139,4639.7,4638.1,5.915]
[1755874863698,0.12293533,4639.6,4636.5,1.657]
[1755874863916,0.66,4639.3,4636.5,1.657]
[1755874864119,3.0,4639.1,4636.6,4.258]
[1755874864306,0.64551194,4639.9,4636.7,10.024602]
[1755874864519,0.64551194,4639.9,4636.6,4.41760202]
[1755874864520,0.66,4639.8,4636.6,0.15960202]
[1755874864705,0.66,4639.6,4636.7,4.4386602]
[1755874864914,3.66,4639.3,4636.7,4.4386602]
[1755874865112,0.0269443,4639.2,4636.7,0.1816602]
[1755874865300,0.66,4638.9,4636.5,1.657]
[1755874865498,4.257,4639.1,4635.7,0.001]
[1755874865499,0.66,4638.4,4635.7,0.001]
[1755874865718,3.0,4637.5,4636.2,0.16665767]
[1755874865943,7.05145475,4637.4,4636.2,0.001]
[1755874866153,3.0,4637.2,4636.2,0.16515125]
[1755874866334,1.38695,4637.1,4636.2,0.16515125]
[1755874866533,3.0,4636.9,4636.2,0.16515125]
[1755874866977,0.4505,4637.1,4636.2,0.16515125]
[1755874867279,3.0,4637.9,4636.8,0.02]
[1755874867280,0.4505,4637.9,4636.8,0.02]
[1755874867562,0.02695243,4637.8,4636.8,0.02]
[1755874867723,0.4505,4639.3,4637.0,0.66]
[1755874867922,0.4505,4640.1,4637.3,5.15642723]
[1755874868155,0.02,4640.8,4637.3,5.15642723]
[1755874868156,0.02,4640.8,4637.5,3.0]
[1755874868318,0.02,4640.8,4637.8,0.66]
[1755874868522,0.452,4640.4,4638.0,0.66]
[1755874868822,0.02,4640.8,4637.1,1.4059616]
[1755874868823,0.47894081,4639.8,4637.2,0.66]
[1755874869174,6.657,4640.0,4637.1,3.5281616]
[1755874869175,3.64551194,4639.9,4637.5,0.66]
[1755874869326,4.256,4639.7,4638.0,2.15605654]
[1755874869633,0.64551194,4639.9,4638.4,0.66]
[1755874869821,0.64551194,4639.9,4638.7,0.66]
[1755874870020,0.64551194,4639.9,4638.6,3.0]
[1755874870021,0.64551194,4639.9,4639.8,2.81526531]
[1755874870249,0.64551194,4639.9,4639.8,0.79706078]
[1755874870556,0.64551194,4639.9,4638.8,1.657]
[1755874870868,0.64551194,4639.9,4639.0,3.0]
[1755874871069,0.64551194,4639.9,4638.9,1.1252]
[1755874871281,0.64551194,4639.9,4638.9,0.4652]
[1755874871422,0.64551194,4639.9,4639.1,0.66]
[1755874871616,0.64551194,4639.9,4639.8,2.15526531]
[1755874871885,0.64551194,4639.9,4639.8,2.62046531]
[1755874872287,0.54180194,4639.9,4639.8,3.28046531]
[1755874872902,0.21816897,4639.9,4639.8,2.62046531]
[1755874873131,0.21816897,4639.9,4639.8,3.28046531]
[1755874873271,0.21816897,4639.9,4639.8,1.00877886]
[1755874873457,0.21816897,4639.9,4639.3,1.1252]
[1755874873659,0.21816897,4639.9,4639.7,2.15530866]
[1755874873956,5.0,4640.0,4639.9,2.81521886]
[1755874874292,4.67636703,4640.0,4639.9,32.75418286]
[1755874874598,4.67636703,4640.0,4639.9,27.83269186]
[1755874874805,0.02,4641.8,4641.7,2.15438309]
[1755874875098,0.0192,4641.8,4641.7,8.909]
[1755874875266,0.0192,4641.8,4641.7,6.017]
[1755874875626,0.0192,4641.8,4641.7,0.108]
[1755874876161,0.4712,4641.8,4641.7,0.26778259]
[1755874876475,0.4712,4641.8,4641.7,0.108]
[1755874877075,0.0192,4641.8,4641.7,0.27105073]
[1755874878372,0.4732,4641.8,4641.7,0.27105073]
[1755874878772,0.0212,4641.8,4641.7,0.27105073]
[1755874878983,0.4732,4641.8,4641.7,0.27105073]
[1755874879284,0.0212,4641.8,4641.7,0.27105073]
[1755874879596,0.0212,4641.8,4641.7,9.67443382]
[1755874879800,0.022,4642.8,4641.7,5.48749411]
[1755874880097,0.45939102,4642.7,4641.8,4.249]
[1755874880299,0.45939102,4642.7,4641.4,1.657]
[1755874880499,0.45939102,4642.7,4642.6,0.108]
[1755874881295,0.45939102,4642.7,4642.1,0.108]
[1755874881800,0.02692456,4642.6,4642.1,0.108]
[1755874882097,0.45939102,4642.5,4641.4,1.81964059]
[1755874882263,0.00739102,4642.5,4641.5,0.60676406]
[1755874882598,0.00739102,4642.5,4642.4,0.108]
[1755874883997,0.00739102,4642.5,4642.4,3.768]
[1755874884361,0.00739102,4642.5,4642.4,16.61341745]
[1755874884599,0.00739102,4642.5,4642.4,8.014]
[1755874884799,0.00739102,4642.5,4642.4,0.108]
[1755874885306,0.00739102,4642.5,4642.4,10.0044]
[1755874885608,0.022,4642.8,4642.7,3.66]
[1755874885767,0.022,4642.8,4642.7,14.56729905]
[1755874886103,0.022,4642.8,4642.7,14.67529905]
[1755874886403,0.022,4642.8,4642.7,4.764]
[1755874886566,0.022,4642.8,4642.7,12.239]
[1755874886770,0.022,4642.8,4642.7,9.669]
[1755874886970,0.022,4642.8,4642.7,12.47869]
[1755874887165,0.022,4642.8,4642.7,14.63260905]
[1755874887399,0.0212,4642.8,4642.7,16.31126493]
[1755874887704,0.02,4643.8,4643.7,2.15345521]
[1755874887865,0.02,4643.8,4643.7,15.23245521]
[1755874888070,0.02,4643.8,4643.7,8.176]
[1755874888276,0.02,4643.8,4643.7,9.419]
[1755874888920,0.02,4643.8,4642.7,3.33465588]
[1755874888921,0.472,4643.8,4643.2,4.243]
[1755874889092,0.472,4643.8,4642.3,5.176]
[1755874889093,0.472,4643.8,4643.0,4.243]
[1755874889291,0.472,4643.8,4641.8,0.02]
[1755874889490,0.472,4643.8,4641.4,1.81594093]
[1755874889491,5.34291819,4643.7,4641.4,1.81135193]
[1755874889696,0.452,4643.6,4641.5,4.243]
[1755874889982,0.452,4643.6,4642.0,2.15423462]
[1755874890177,0.02691934,4643.5,4641.6,3.0]
[1755874890420,0.02691934,4643.5,4641.0,0.07383812]
[1755874890421,0.452,4643.4,4641.7,4.242]
[1755874890760,0.02,4643.8,4641.9,3.66]
[1755874890903,0.02,4643.8,4642.3,0.66]
[1755874891101,0.452,4643.7,4642.1,0.66]
[1755874891304,0.452,4643.7,4642.4,2.15402281]
[1755874891512,0.452,4643.7,4642.5,1.656]
[1755874891713,0.02,4643.8,4642.5,1.656]
[1755874892043,0.452,4643.6,4642.6,4.241]
[1755874892204,0.452,4643.6,4642.5,1.656]
[1755874892400,0.452,4643.6,4641.4,0.15535193]
[1755874892401,0.03071719,4643.5,4641.4,1.81135193]
[1755874892650,0.03071719,4643.5,4641.4,1.656]
[1755874892651,0.452,4643.4,4641.4,1.656]
[1755874892954,0.6869205,4643.3,4641.4,1.656]
[1755874893173,0.66,4643.1,4641.4,0.16267295]
[1755874893441,0.02692224,4643.0,4640.1,5.896]
[1755874893753,0.66,4642.4,4638.8,1.657]
[1755874893909,3.66,4641.5,4638.8,0.001]
[1755874894104,7.3099263,4642.3,4639.2,0.16219971]
[1755874894105,7.283,4642.3,4639.2,0.16219971]
[1755874894304,0.452,4641.4,4639.2,0.16219971]
[1755874894506,0.0269321,4641.3,4639.2,0.16219971]
[1755874894705,0.66,4641.1,4639.2,0.16219971]
[1755874894906,0.452,4641.0,4638.8,0.001]
[1755874895138,0.02693443,4640.9,4638.8,0.16185382]
[1755874895333,0.66,4640.7,4638.8,0.001]
[1755874895537,0.66,4640.5,4638.8,0.001]
[1755874895737,0.02693733,4640.4,4639.8,0.001]
[1755874895909,0.47893733,4640.4,4639.8,0.001]
[1755874896109,0.452,4640.4,4639.8,0.16618924]
[1755874896334,0.452,4640.4,4639.8,0.001]
[1755874896523,0.452,4641.4,4639.8,0.16495914]
[1755874896728,0.452,4641.4,4639.9,0.18209591]
[1755874896981,0.0269321,4641.3,4640.7,0.108]
[1755874897261,0.452,4641.2,4639.8,0.1591971]
[1755874897620,0.59641782,4642.8,4639.8,1.8151971]
[1755874897822,0.452,4641.9,4639.9,13.534517]
[1755874898142,0.4492,4642.3,4640.1,0.66]
[1755874898343,0.4492,4642.3,4642.1,0.108]
[1755874898533,0.47612688,4642.2,4640.0,1.83497141]
[1755874898844,0.108,4641.5,4640.9,0.108]
[1755874899012,0.108,4641.1,4639.9,1.656]
[1755874899213,0.4492,4641.0,4640.4,0.108]
[1755874899426,0.68693443,4640.9,4639.8,0.001]
[1755874899624,3.68613443,4640.9,4637.9,1.656]
[1755874899846,1.6869472,4640.8,4637.9,1.656]
[1755874900013,0.02693559,4640.7,4637.9,1.656]
[1755874900209,0.4492,4640.6,4637.9,1.656]
[1755874900444,0.02693675,4640.5,4637.9,1.656]
[1755874900643,0.4492,4640.4,4637.9,1.656]
[1755874900860,0.02693791,4640.3,4637.9,1.656]
[1755874901358,4.6882,4640.2,4636.3,1.656]
[1755874901652,0.66,4639.6,4636.8,0.1813443]
[1755874901810,2.13214255,4639.5,4636.9,2.29843]
[1755874902014,0.4492,4639.5,4637.0,4.239]
[1755874902231,0.30269379,4640.3,4637.3,0.66]
[1755874902232,0.4492,4640.3,4637.3,0.66]
[1755874902458,0.47613791,4640.3,4637.5,3.0]
[1755874902658,0.47613791,4640.3,4637.8,2.15617543]
[1755874902859,0.4492,4640.3,4638.0,0.66]
[1755874903057,0.4492,4640.3,4638.1,2.00493]
[1755874903364,0.4492,4640.3,4637.8,3.0]
[1755874903515,1.68293849,4640.2,4636.9,5.177]
[1755874903716,4.1092,4640.1,4636.8,0.17931637]
[1755874903925,0.66,4639.9,4636.8,0.17931637]
[1755874904126,0.66,4639.7,4636.8,0.17931637]
[1755874904340,0.02694197,4639.6,4636.8,0.17931637]
[1755874904540,0.02694197,4639.6,4636.8,0.02]
[1755874904541,0.66,4639.4,4636.8,0.02]
[1755874904847,3.66,4639.2,4636.8,0.02]
[1755874905013,2.1062,4639.1,4636.8,0.02]
[1755874905212,3.68694546,4639.0,4636.8,0.02]
[1755874905436,1.13614546,4639.0,4636.8,0.02]
[1755874905637,0.68694546,4639.0,4636.8,0.02]
[1755874905841,0.66,4638.8,4636.8,0.02]
[1755874906039,0.4492,4638.9,4636.8,0.02]
[1755874906040,0.4492,4638.9,4636.9,6.67809]
[1755874906247,0.4492,4638.9,4637.0,7.899]
[1755874906449,0.4492,4638.9,4637.1,4.450405]
[1755874906653,0.4492,4638.9,4636.9,2.15656971]
[1755874906817,0.4492,4638.9,4637.2,2.1564293]
[1755874907018,0.4492,4638.9,4637.3,0.52358893]
[1755874907219,0.4492,4638.9,4637.3,2.15641753]
[1755874907467,0.02694662,4638.8,4636.8,0.25406079]
[1755874907622,0.02694662,4638.8,4636.8,0.02]
[1755874907818,0.4492,4639.8,4637.0,3.66]
[1755874908158,0.4492,4639.8,4637.2,3.66]
[1755874908345,0.02694139,4639.7,4636.8,0.02]
[1755874908545,0.4492,4639.6,4637.1,0.66]
[1755874908716,0.4492,4639.6,4637.3,3.0]
[1755874908717,0.02694255,4639.5,4637.3,3.0]
[1755874908918,0.4492,4639.4,4637.3,3.0]
[1755874909140,0.4492,4639.4,4637.3,2.15642722]
[1755874909351,0.02694371,4639.3,4637.2,0.5770451]
[1755874909554,0.5572,4639.2,4638.5,0.108]
[1755874909718,0.02694488,4639.1,4638.5,0.108]
[1755874909914,0.02694488,4639.1,4636.9,2.15658684]
[1755874909915,0.4492,4639.0,4636.8,0.02]
[1755874910150,0.108,4638.4,4637.8,0.108]
[1755874910354,0.4492,4638.3,4637.8,0.108]
[1755874910647,0.24026053,4638.9,4637.3,0.108]
[1755874910648,0.4492,4638.2,4637.3,0.108]
[1755874910850,0.5572,4638.2,4636.8,0.02]
[1755874911025,1.657,4639.2,4638.1,0.108]
[1755874911026,0.108,4638.8,4638.1,0.108]
[1755874911227,0.02694546,4639.0,4636.8,0.68]
[1755874911434,0.02694488,4639.1,4638.5,0.108]
[1755874911630,0.4492,4639.0,4636.8,0.02]
[1755874911846,0.4492,4640.1,4637.5,0.66]
[1755874912048,0.02693965,4640.0,4637.6,1.789]
[1755874912246,0.4492,4639.9,4637.6,3.94524205]
[1755874912554,0.4492,4639.9,4637.7,4.11123]
[1755874912757,0.4492,4639.9,4638.5,0.001]
[1755874913355,0.4492,4640.6,4638.5,0.001]
[1755874913650,0.4492,4640.1,4638.5,0.001]
[1755874914365,0.02693965,4640.0,4638.6,0.21568747]
[1755874914674,0.02693965,4640.0,4638.5,0.001]
[1755874915126,0.4492,4639.9,4638.5,0.001]
[1755874916235,0.02694081,4639.8,4638.5,0.001]
[1755874916569,0.4492,4639.9,4638.5,0.001]
[1755874917455,0.4492,4640.5,4638.5,0.001]
[1755874917756,1.657,4642.0,4638.9,0.66]
[1755874917969,0.4492,4641.3,4639.0,11.372767]
[1755874918167,0.02693268,4641.2,4639.1,4.124187]
[1755874918374,0.02693268,4641.2,4639.0,2.023]
[1755874918574,0.4492,4641.1,4639.0,2.023]
[1755874918731,0.02693385,4641.0,4639.1,0.2023]
[1755874919227,0.4492,4640.9,4639.1,0.2023]
[1755874919537,0.02693501,4640.8,4639.1,0.2023]
[1755874920038,0.66,4640.6,4639.1,0.16566742]
[1755874920375,0.4492,4640.7,4638.5,0.001]
[1755874920578,0.4492,4641.4,4638.7,3.66]
[1755874920860,0.0269321,4641.3,4639.4,2.15544798]
[1755874921032,0.0269321,4641.3,4639.3,1.657]
[1755874921230,0.0269321,4641.3,4639.4,0.1657]
[1755874921627,0.4492,4641.4,4639.4,0.1657]
[1755874922062,0.4492,4641.4,4640.3,0.108]
[1755874922063,0.108,4640.9,4640.3,0.108]
[1755874922360,2.317,4641.9,4639.4,0.1657]
[1755874922361,1.657,4641.9,4639.5,0.66]
[1755874922660,1.657,4641.9,4639.4,3.1657]
[1755874922661,0.5772,4642.8,4641.8,0.108]
[1755874922863,0.002,4642.3,4640.9,1.657]
[1755874923174,0.002,4642.3,4642.0,0.108]
[1755874923329,0.4492,4642.2,4642.0,0.108]
[1755874923523,0.002,4642.3,4641.8,0.108]
[1755874924142,0.0012,4642.3,4641.8,0.108]
[1755874924340,0.4492,4642.2,4641.8,0.108]
[1755874924535,0.02692746,4642.1,4640.0,4.234]
[1755874924865,0.108,4641.3,4640.7,0.108]
[1755874925080,0.11,4641.8,4641.1,0.108]
[1755874925380,0.4492,4641.7,4639.8,0.02]
[1755874925561,0.4492,4641.7,4640.0,0.16411092]
[1755874925562,0.108,4641.4,4640.0,0.16411092]
[1755874925871,0.108,4640.7,4640.1,0.108]
[1755874926038,0.02693617,4640.6,4640.1,0.108]
[1755874926385,0.4492,4641.3,4639.8,0.17889308]
[1755874926528,0.4492,4641.3,4641.0,0.108]
[1755874927151,0.108,4641.6,4639.8,0.17889308]
[1755874927152,0.47613268,4641.2,4639.8,0.17889308]
[1755874927361,0.66,4641.1,4639.8,0.17889308]
[1755874927535,0.108,4640.6,4639.9,0.108]
[1755874927742,0.108,4640.2,4639.8,0.17889308]
[1755874928037,0.108,4640.6,4639.9,0.108]
[1755874928339,0.108,4639.9,4639.8,0.02]
[1755874928851,0.108,4640.4,4639.8,0.02]
[1755874929049,1.657,4641.0,4639.8,0.2886573]
[1755874929251,0.4504,4641.4,4640.9,0.108]
[1755874929437,0.4773321,4641.3,4640.9,0.108]
[1755874929839,0.4504,4641.2,4640.9,0.108]
[1755874930040,0.02693327,4641.1,4640.9,0.108]
[1755874930252,0.4504,4641.0,4640.5,0.108]
[1755874930565,0.108,4640.6,4640.2,0.16341093]
[1755874930770,0.108,4640.6,4639.8,0.02]
[1755874930771,0.47733675,4640.5,4639.8,0.02]
[1755874930952,0.108,4640.4,4639.8,0.02]
[1755874931353,0.66,4641.1,4640.2,0.108]
[1755874931354,0.4504,4641.1,4640.2,0.108]
[1755874931653,0.108,4641.3,4639.8,0.02]
[1755874931861,0.5584,4641.7,4641.1,0.108]
[1755874932066,0.5584,4641.7,4640.0,1.657]
[1755874932067,0.02693036,4641.6,4640.0,1.657]
[1755874932268,0.108,4641.0,4640.3,0.108]
[1755874932445,0.47733443,4640.9,4640.3,0.108]
[1755874932778,0.02693501,4640.8,4640.3,0.108]
[1755874932963,0.108,4641.0,4640.4,0.2403]
[1755874933163,0.108,4641.0,4640.3,0.108]
[1755874933476,0.002,4641.8,4640.4,0.1765]
[1755874933854,0.4504,4641.7,4640.4,0.1765]
[1755874934060,0.002,4641.8,4640.5,0.66]
[1755874934245,0.002,4641.8,4640.7,3.0]
[1755874934445,0.002,4641.8,4640.6,3.0]
[1755874934749,0.002,4641.8,4640.7,0.38365]
[1755874934976,0.002,4641.8,4640.4,0.1765]
[1755874935348,0.0289292,4641.8,4640.4,0.1765]
[1755874935643,0.0289292,4641.8,4640.5,0.66]
[1755874935644,0.002,4641.8,4640.5,0.66]
[1755874935843,0.002,4641.8,4640.9,2.15473561]
[1755874936080,0.002,4641.8,4640.7,0.66]
[1755874936293,0.0012,4641.8,4641.5,2.15446436]
[1755874936472,0.0012,4641.8,4641.3,5.885]
[1755874936650,0.0012,4641.8,4641.4,3.0]
[1755874936844,0.0012,4641.8,4641.7,2.15438309]
[1755874937063,0.0012,4641.8,4641.3,5.885]
[1755874937064,0.0012,4641.8,4641.3,1.657]
[1755874937490,0.0012,4641.8,4640.1,0.2403]
[1755874937491,0.0012,4641.8,4640.5,1.657]
[1755874937692,0.4504,4641.7,4640.5,1.657]
[1755874937847,0.0012,4641.8,4640.5,1.8227]
[1755874938167,0.0012,4641.8,4640.7,3.0]
[1755874938369,0.0012,4641.8,4640.9,0.66]
[1755874938883,0.0012,4641.8,4640.9,4.227]
[1755874939181,0.0012,4641.8,4640.5,4.8227]
[1755874939402,0.0012,4641.8,4640.6,2.15489376]
[1755874939626,0.0012,4641.8,4640.5,1.8227]
[1755874939627,0.4516,4641.8,4640.5,1.8227]
[1755874939774,0.02692978,4641.7,4640.8,0.02]
[1755874940197,0.4516,4641.8,4640.8,0.02]
[1755874940398,0.02692978,4641.7,4640.8,0.02]
[1755874940606,0.0012,4641.8,4640.8,0.02]
[1755874940972,0.0012,4641.8,4640.9,4.226]
[1755874941217,0.0012,4641.8,4641.0,0.4246]
[1755874941505,0.0012,4641.8,4640.8,0.02]
[1755874941709,0.0012,4641.8,4641.6,2.15439317]
[1755874941874,0.0012,4641.8,4641.6,2.15442253]
[1755874942070,0.0012,4641.8,4641.7,2.15438309]
[1755874942298,0.0012,4641.8,4641.5,3.0]
[1755874942613,0.0012,4641.8,4641.7,2.15438309]
[1755874942768,0.0012,4641.8,4641.6,0.7225]
[1755874942973,0.0012,4641.8,4641.5,3.0]
[1755874942974,0.0012,4641.8,4640.9,3.0]
[1755874943175,0.0012,4641.8,4641.0,4.225]
[1755874943384,0.0012,4641.8,4641.7,0.108]
[1755874943809,0.4516,4641.8,4639.4,0.2403]
[1755874943974,0.02692978,4641.7,4641.3,0.108]
[1755874944170,0.02692978,4641.7,4641.1,0.108]
[1755874944409,0.4504,4641.6,4641.1,0.108]
[1755874944598,0.47733094,4641.5,4641.1,0.108]
[1755874944799,0.4504,4641.5,4641.1,0.108]
[1755874944976,0.4504,4641.4,4641.1,0.108]
[1755874945308,0.4504,4641.3,4641.1,0.108]
[1755874945482,0.0281292,4641.8,4641.1,0.108]
[1755874945873,0.0012,4641.8,4641.1,0.108]
[1755874946288,0.0281292,4641.8,4641.1,0.108]
[1755874946776,0.0012,4641.8,4641.3,0.001]
[1755874947115,0.0012,4641.8,4641.4,0.2403]
[1755874947319,0.064,4641.6,4641.5,2.60090592]
[1755874947813,0.064,4641.6,4641.5,5.84120592]
[1755874948184,0.064,4641.6,4641.5,5.60090592]
[1755874948619,0.0632,4641.6,4641.5,36.26090592]
[1755874948823,0.0012,4641.8,4641.7,2.81438309]
[1755874948994,0.0012,4641.8,4641.7,17.62753033]
[1755874949329,0.0012,4641.8,4641.7,8.51721833]
[1755874949496,0.0012,4641.8,4641.7,10.58483524]
[1755874949696,0.0012,4641.8,4641.7,12.73921833]
[1755874950037,0.0012,4641.8,4641.7,13.63951833]
[1755874950395,0.0012,4641.8,4641.7,10.39921833]
[1755874950590,0.0012,4641.8,4641.7,13.39921833]
[1755874950792,0.0012,4641.8,4641.7,13.63951833]
[1755874951619,0.0012,4641.8,4641.7,8.51721833]
[1755874951826,0.0012,4641.8,4641.7,8.03138309]
[1755874952318,0.0012,4641.8,4641.7,11.93168309]
[1755874953726,0.022,4642.8,4641.7,11.93168309]